Cogmind - Beta 13 X1 @@@ ROGUE MODE // 2023.08.22 @ 07:39:14 Player: VR-DUX Result: Destroyed by UD-SIZ(R) with Subdweller Laser Performance ------------- Evolutions (0) 0 Regions Visited (2) 400 Robots Destroyed (34) 170 Value Destroyed (651) 651 Prototype IDs (1) 20 Alien Tech Used (0) 0 Bonus (-23) -23 TOTAL SCORE: 1218 Bonus ------- High Alert Combat Kills 16 Friendly Fire -39 Cogmind --------- Core Integrity 0/250 Matter 111/300 Energy 197/200 System Corruption 0% Temperature Cool (6) Movement Treading (260) Ox1 Location -10/Subcaves Parts ------- > --- POWER (1+3) ------ Subdweller Power Source > --- PROPULSION (2) --- Spiked Treads Subdweller Monowheel > --- UTILITY (2) ------ Large Storage Unit Power Bank > --- WEAPON (2) ------- Subdweller Laser > --- INVENTORY (15) --- Small Storage Unit Structural Scanner Structural Scanner Sensor Array Signal Interpreter Signal Interpreter Signal Interpreter Light Armor Plating Light Armor Plating Light Armor Plating EM Pulse Gun Medium Laser Beam Rifle Assault Rifle Peak State ------------ > --- POWER ------------ Subdweller Power Source > --- PROPULSION ------- Spiked Treads Subdweller Monowheel > --- UTILITY ---------- Large Storage Unit Power Bank > --- WEAPON ----------- Subdweller Laser Subdweller Machine Gun > --- INVENTORY -------- Small Storage Unit Structural Scanner Structural Scanner Sensor Array Signal Interpreter Signal Interpreter Signal Interpreter Light Armor Plating Light Armor Plating Light Armor Plating EM Pulse Gun Medium Laser Beam Rifle Assault Rifle [Rating: 21] Favorites ----------- Power Light Ion Engine Engine Light Ion Engine Propulsion Light Treads Treads Light Treads Leg Aluminum Leg Wheel Subdweller Monowheel Utility Large Storage Unit Device Power Bank Storage Large Storage Unit Weapon Subdweller Machine Gun Energy Gun Subdweller Laser Ballistic Gun Subdweller Machine Gun Launcher Grenade Launcher Build | -11 -10 -10 ------- Run | Jun Mat Sub Slots Evolved . | . . . Power . | . . . Propulsion . | . . . Utility . | . . . Weapon . | . . . Parts Attached 32 | . 19 13 Power 5 | . 3 2 Engine 5 | . 3 2 Core . | . . . Reactor . | . . . Propulsion 7 | . 5 2 Treads 3 | . 2 1 Leg 3 | . 3 . Wheel 1 | . . 1 Hover . | . . . Flight . | . . . Utility 4 | . 3 1 Device 3 | . 2 1 Storage 1 | . 1 . Processor . | . . . Hackware . | . . . Protection . | . . . Artifact . | . . . Weapon 16 | . 8 8 Energy Gun 6 | . 4 2 Energy Cannon . | . . . Ballistic Gun 8 | . 3 5 Ballistic Cannon . | . . . Launcher 2 | . 1 1 Special Weapon . | . . . Impact Weapon . | . . . Slashing Weapon . | . . . Piercing Weapon . | . . . Special Melee Weapon . | . . . Unidentified Prototypes 1 | . . 1 Parts Lost 7 | . . 7 Power 2 | . . 2 Propulsion 2 | . . 2 Utility . | . . . Weapon 3 | . . 3 Highest Loss Streak 2 | . . 2 To Critical Strikes 1 | . . 1 Average Slot Usage (%) 80 | . 96 73 Engine 9 | . 12 8 Treads 17 | . 13 19 Leg 4 | . 14 . Wheel 1 | . . 2 Device 11 | . 12 10 Storage 11 | . 14 10 Energy Gun 3 | . 5 3 Ballistic Gun 11 | . 13 10 Launcher 8 | . 8 7 Naked Turns . | . . . Heaviest Build 36 | 13 29 36 Greatest Support 40 | 20 40 40 Greatest Overweight (x) 1 | . . 1 Average Overweight (x) . | . . . Largest Inventory Capacity 15 | 8 15 15 Average Capacity 13 | 8 10 15 Most Carried 15 | 6 15 15 Average Carried 12 | 6 8 14 Final Capacity 15 | 8 15 15 Final Carried 15 | 6 15 14 Class Distribution -------------------- 84% | Mutant 15% | Derelict-Mutant Dominant Class ---------------- Mutant | -10/Materials Mutant | -10/Subcaves Resources | -11 -10 -10 ----------- Run | Jun Mat Sub Matter Collected 651 | 200 172 279 Remotely . | . . . Salvage Created 808 | . 524 284 Parts 70 | . 44 26 Haulers Intercepted . | . . . Recyclers Shooed 2 | . 2 . Parts Field Recycled . | . . . Retrieved Matter . | . . . Parts Self-Destructed 3 | . . 3 Prevented . | . . . Kills | -11 -10 -10 ------- Run | Jun Mat Sub Combat Hostiles Destroyed 24 | . 13 11 Guns 12 | . 5 7 AOE 12 | . 8 4 Classes Destroyed 8 | . 6 2 Worker 1 | . 1 . Builder 4 | . 4 . Recycler 2 | . 2 . Watcher 2 | . 2 . Swarmer 12 | . 9 3 Grunt 4 | . 4 . Subdweller 8 | . . 8 Zionite 1 | . . 1 Best Kill Streak 10 | . 10 3 Combat Bots Only 8 | . 8 3 Max Kills in Single Turn 4 | . 4 2 Gunslinging . | . . . Exploded 3 | . 3 2 Melee . | . . . Uniques/NPCs Destroyed . | . . . Combat | -11 -10 -10 -------- Run | Jun Mat Sub Damage Taken 1413 | . 257 1156 Core 256 | . 39 217 Absorbed by Shields . | . . . Regen/Repaired (Parts) 36 | . 36 . Core Remaining (%) 100 | 100 . . Volleys Fired 126 | . 49 77 Largest 2 | . 2 2 Hottest 90 | . 70 90 Shots Fired 178 | . 83 95 Gun 165 | . 77 88 Cannon . | . . . Launcher 13 | . 6 7 Special . | . . . Kinetic 96 | . 40 56 Thermal 67 | . 35 32 Explosive 13 | . 6 7 Electromagnetic 2 | . 2 . Robot Hit Streak 12 | . 8 12 Robot Miss Streak 4 | . 4 3 Penetration Max . | . . . Secondary Targets 2 | . 1 1 Max Gunslinging Chain 1 | . 1 1 Shots Hit Robots 74 | . 37 37 Core Hits 46 | . 27 19 Critical Kills . | . . . Critical Parts Destroyed 1 | . . 1 Critical Strikes 3 | . 2 1 Burn 2 | . 2 . Destroy 1 | . . 1 Melee Attacks . | . . . Impact . | . . . Slashing . | . . . Piercing . | . . . Sneak Attacks . | . . . Combat Hostiles . | . . . Follow-up Attacks . | . . . Damage Inflicted 2012 | . 829 1183 Guns 1116 | . 420 696 Cannons . | . . . Explosions 896 | . 409 487 Melee . | . . . Ramming . | . . . Kinetic 547 | . 217 330 Thermal 545 | . 179 366 Explosive 896 | . 409 487 Electromagnetic 24 | . 24 . Impact . | . . . Slashing . | . . . Piercing . | . . . Highest Corruption . | . . . Average Corruption . | . . . Corruption Purged . | . . . Corruption Blocked . | . . . Overload Shots . | . . . Overflow Damage 30 | . 30 . Projectiles . | . . . Explosions 30 | . 30 . Melee . | . . . Knockbacks . | . . . Impact . | . . . Kinetic . | . . . Secondary . | . . . Self-Inflicted Damage 116 | . 37 79 Shots 4 | . 1 3 Rammed . | . . . Targets Rammed . | . . . Kicked . | . . . Crushed . | . . . Highest Temperature 112 | . 112 . Average Temperature 31 | . 31 . Received Heat Transfer 153 | . 30 123 Siege Activations . | . . . Robots Corrupted . | . . . Combat Hostiles . | . . . Parts Fried . | . . . Impact Corruptions . | . . . Robots Melted . | . . . Combat Hostiles . | . . . Parts Melted . | . . . Heat Transferred 1116 | . 666 450 Parts Sabotaged . | . . . Parts Stolen . | . . . Parts Stripped . | . . . Power Chain Reactions . | . . . Missiles Intercepted . | . . . Alert | -11 -10 -10 ------- Run | Jun Mat Sub Peak Influence 439 | . 439 . Initial . | . . . Average 175 | . 175 . Maximum Alert Level 2 | . 2 . Low Security (%) 44 | 100 44 . Level 1 53 | . 53 . Level 2 1 | . 1 . Level 3 . | . . . Level 4 . | . . . Level 5 . | . . . High Security . | . . . Max Security . | . . . Squads Dispatched . | . . . Investigation . | . . . Extermination . | . . . Reinforcement . | . . . Assault . | . . . Garrison . | . . . Intercept . | . . . Searches Triggered . | . . . Construction Impeded . | . . . Haulers Reinforced . | . . . Active Scanning Responses . | . . . Cargo Convoy Interrupts . | . . . Stealth | -11 -10 -10 --------- Run | Jun Mat Sub Distress Signals . | . . . Communications Jammed . | . . . Distress Signals . | . . . Times Spotted 41 | . 24 17 Peak Tracking Total 8 | . 8 6 Tactical Retreats 1 | . . 1 Traps | -11 -10 -10 ------- Run | Jun Mat Sub Traps Triggered 9 | . 4 5 Indirectly . | . . . Trap Hack Attempts . | . . . Triggered . | . . . Disarmed . | . . . Reprogrammed . | . . . Reused . | . . . Traps Extracted . | . . . Installed . | . . . Triggered . | . . . Machines | -11 -10 -10 ---------- Run | Jun Mat Sub Machines Disabled 1 | . 1 . Max in Single Turn 1 | . 1 . Machines Repaired . | . . . Machines Sabotaged . | . . . Overloaded Fab Kills . | . . . Hacking | -11 -10 -10 --------- Run | Jun Mat Sub Machines Accessed 5 | . 5 . Terminals 3 | . 3 . Fabricators . | . . . Repair Stations 1 | . 1 . Recycling Units 1 | . 1 . Scanalyzers . | . . . Garrison Access . | . . . Total Hacks 12 | . 12 . Successful 6 | . 6 . Failed 6 | . 6 . Catastrophic 1 | . 1 . Database Lockouts . | . . . Manual 5 | . 5 . Terminals 7 | . 7 . Fabricators . | . . . Repair Stations 2 | . 2 . Recycling Units 3 | . 3 . Scanalyzers . | . . . Garrison Access . | . . . Terminal Hacks 3 | . 3 . Robot Analysis 1 | . 1 . Locate Traps 1 | . 1 . Zone Layout 1 | . 1 . Fabricator Hacks . | . . . Repair Station Hacks 2 | . 2 . Scan Component 1 | . 1 . Repair 1 | . 1 . Recycling Unit Hacks 1 | . 1 . Retrieve Components 1 | . 1 . Scanalyzer . | . . . Garrison Access Hacks . | . . . Unauthorized Hacks . | . . . Terminals . | . . . Fabricators . | . . . Repair Stations . | . . . Recycling Units . | . . . Scanalyzers . | . . . Garrison Access . | . . . Data Cores Recovered . | . . . Used . | . . . Hacking Detections 4 | . 4 . Full Trace Events 1 | . 1 . Feedback Events . | . . . Feedback Blocked . | . . . Robot Schematics Acquired . | . . . Robots Built . | . . . Authchips . | . . . Time . | . . . Total Robot Build Rating . | . . . Part Schematics Acquired . | . . . Parts Built . | . . . Authchips . | . . . Time . | . . . Total Part Build Rating . | . . . Parts Repaired 1 | . 1 . Time 26 | . 26 . Parts Recycled . | . . . Recycled Matter . | . . . Retrieved Matter . | . . . Retrieved Components . | . . . Parts Scanalyzed . | . . . Part Schematics Acquired . | . . . Parts Damaged . | . . . Bothacking | -11 -10 -10 ------------ Run | Jun Mat Sub Used RIF Installer . | . . . Robots Hacked . | . . . Non-combat . | . . . Combat . | . . . Robot Hacks Applied . | . . . Relay Couplers Released . | . . . Fabnet Peak Effective % . | . . . Robots Rewired . | . . . Allies Hacked . | . . . Hacks Repelled . | . . . Allies | -11 -10 -10 -------- Run | Jun Mat Sub Total Allies . | . . . Largest Group . | . . . Highest-Rated Group . | . . . Highest-Rated Ally . | . . . Total Orders . | . . . Ally Attacks . | . . . Total Damage . | . . . Kills . | . . . Allies Corrupted . | . . . Allies Melted . | . . . Intel | -11 -10 -10 ------- Run | Jun Mat Sub Robot Analysis Total 1 | . 1 . Derelict Logs Recovered . | . . . Drone Launches . | . . . Drone Recoveries . | . . . Exploration | -11 -10 -10 ------------- Run | Jun Mat Sub Turns Passed 2748 | 2 905 1841 Spaces Moved 1584 | 2 494 1088 Core . | . . . Treads 1075 | . 267 808 Legs 229 | 2 227 . Wheels 280 | . . 280 Hover . | . . . Flight . | . . . Fastest Speed 120 | 120 120 120 Average Speed 147 | 120 141 150 Slowest Speed 260 | 120 160 260 Overloaded Moves . | . . . Propulsion Burnouts . | . . . Robots Hopped . | . . . Cave-ins Triggered . | . . . Exploration Rate (%) 41 | 2 76 46 Regions Visited 2 Branch Regions 1 Pre-discovered Areas 1 | . . 1 Known Exits Taken . | . . . Unknown Exits Taken 2 | 1 1 . Scrap Searched . | . . . Spaces Dug . | . . . Terrain Destroyed 58 | . 21 37 Melee . | . . . Projectile . | . . . AOE 58 | . 21 37 Terrain Rammed . | . . . Walls Destroyed . | . . . Machines Disabled . | . . . Actions | -11 -10 -10 --------- Run | Jun Mat Sub Total 1810 | 1 616 1193 Wait 37 | . 32 5 Move 1582 | 1 493 1088 Hop . | . . . Pick Up 19 | . 14 5 Fast Attach 14 | . 10 4 Attach 9 | . 3 6 Detach 1 | . . 1 Swap 9 | . 6 3 Drop 13 | . 9 4 Fire 126 | . 49 77 Melee . | . . . Ram . | . . . Kick . | . . . Crush . | . . . Escape Stasis . | . . . Rewire . | . . . Trap . | . . . Miscellaneous . | . . . Route ------- -11/Junkyard -10/Materials (discovered 4 exits: [*Mat x2] / [*Min] / [*Sub]) -10/Subcaves (discovered 1 exit: [*Rec]) History --------- Turn | Location | Event 1 | -11/Junkyard | Discovered new exit (range 1) 3 | -11/Junkyard | Entered Materials 147 | -10/Materials | Discovered new exit (range 10) 346 | -10/Materials | Build established: Mutant 411 | -10/Materials | Destroyed 8 combat bots 463 | -10/Materials | Repaired Assault Rifle 544 | -10/Materials | Discovered new exit (range 16) 744 | -10/Materials | Discovered new exit (range 12) 776 | -10/Materials | Discovered new exit (range 10) 908 | -10/Materials | Entered Subcaves 1185 | -10/Subcaves | A swath of the cavern ceiling suddenly collapsed 1300 | -10/Subcaves | A Subdweller sparked back to life 1300 | -10/Subcaves | A Subdweller sparked back to life 1300 | -10/Subcaves | A Subdweller sparked back to life 1350 | -10/Subcaves | Found Prototype Device 1350 | -10/Subcaves | Identified Power Bank 1352 | -10/Subcaves | Attached Power Bank, gained temporary slots: Power x3 1593 | -10/Subcaves | A swath of the cavern ceiling suddenly collapsed 1698 | -10/Subcaves | Shifting Twisted Machinery released Spk. Treads 1711 | -10/Subcaves | Shifting Twisted Machinery released Sub. Optics 2154 | -10/Subcaves | Core integrity fell below 50% 2620 | -10/Subcaves | Build established: Derelict-Mutant 2621 | -10/Subcaves | Learned location of Zion (-7) 2621 | -10/Subcaves | Met a Zionite searching for "candidates" 2636 | -10/Subcaves | Discovered new exit (range 14) 2744 | -10/Subcaves | Core integrity fell below 20% 2749 | -10/Subcaves | Destroyed by UD-SIZ(R) with Subdweller Laser Last Messages --------------- 02621_ O6-4W7(z): "Hey you! It's really dangerous down here, I feel that you could die at any moment. For your health and safety might I suggest a trip to Zion?" World map updated: -7/Zion. 02636_ EXIT=FOUND 02646_ S-10 Pest destroyed. 02649_ TD-CV3(z) pulls a Mak. Hammer out of the Twisted Machinery. 02652_ O6-4W7(z) destroyed. 02652_ S-10 Pest destroyed. 02655_ S-10 Pest system corrupted by crushing effect. 02655_ S-10 Pest knocked back. 02656_ S-10 Pest system terminally corrupted. 02658_ S-10 Pest destroyed. 02661_ Flight Unit fries itself beyond repair. 02661_ Acquired 18 matter. 02662_ Acquired 21 matter. 02663_ Acquired 10 matter. 02664_ Lgt. Assault Rifle fries itself beyond repair. 02682_ Acquired 15 matter. 02747_ Critical hit (Destroy). 02747_ Sub. Machine Gun destroyed. Map ----- +----------------------------------------------------+ | ????????????????????????????????????????????# "# | | ????????????????????????????????????????????## " | | ?????????????????????????????????????????????# # | | ?????????????????????????????????????????????## | | ?????????????????????????????????????????????## | | ????????????????????????????????????????????## | | ????????????????????????????????????????????# | | ????????????????????????? ?????????????####?###### | | ???????????????????????? ????????????## #??????? | | ????????????????????????# ????????????# ##??#### | | ????????????????????????# ??????????## #??# # | | ???????????????????????## ??????????# #?## | | ???????????????????????# ?????????## ### | | ???????????????????????# ?????????# | | ???????????????????????? ????????## | | ????????????????????????# ????????# ## ### ## # | | ????????????????????????# ???###??# ## ##?###### | | ????????????????????????# #### #### ###???????? | | ????????????????????????# ##?????????? | | ????????????????????????# #?######???? | | ????????????????????????## ### ##??? | | ?????????????????????????## ##?# | | ??????????????????????##### ### | | ?????????????????????## # # ## ### | | ????????????????# ### ### ####?# | | ?????????? R @ ### ##????## | | ?????????? R # ## ## ##??????# | | ?????????? ## ########### ## ##???????# | | ???????????????????????????? ### ##????????# | | ???????????????????????????? #?## #????????## | | ???????????????????????????? ##??## #????????# | | ????????????????????????????# ##???## #????????# | | ?????????????????????????????##????# ##????????## | | ???????????????????????????????????####??????????# | | ?????????????????????????????????????????????????? | | ?????????????????????????????????????????????????? | | ?????????????????????????????????????????????????? | | ???????????????????????????????????????????? ??? | | ???????????????????????????????????????????? ?? | | ???????????????????????????????????????????? ? | | ???????????????????????????????????????????? ? | | ?????????????????????????????????????????????? | | ?????????????????????????????????????????????### | | ?????????????????????????????????????????????### | | ?????????????????????????????????????????????## | | ?????????????????????????????????????????????## | | ?????????????????????????????????????????????## | | ?????????????????????????????????????????????##### | | ?????????????????????????????????????????????##### | | ?????????????????????????????????????????????##### | +----------------------------------------------------+ Best States ------------- Heat Dissipation 25 Energy Generation 15 Energy Capacity 250 Matter Stores 300 Matter Capacity 300 Sight Range 16 Terrain Scan Density 10 Evasion (%) 55 Recoil Reduction 2 Item Schematics ----------------- None Robot Schematics ------------------ None Fabricated ------------ Nothing Alien Tech Used ----------------- None Achievements -------------- None Challenges ------------ None Game ------ Seed PowerDamperWings Manual? 0 Play Time 00:23:31 Cumulative 67.7 hours Start 2023.08.22 @ 07:15:21 End 2023.08.22 @ 07:39:14 Sessions 1 Manual Loads 0 Difficulty Rogue Special Mode None Game No. 54 Rogue 54 Adventurer 0 Explorer 0 Win Type - Total 1 Types 1/0/0/0/0/0/0/0/0 Lore% 39 Gallery% 33 Achievement% 37 Wizard Run 0 Options --------- ASCII 0 Keyboard 0 Movement Mouse Keybinds 0 Fullscreen 1 Font 16/SmallcapsGlow Map View 84x54 Tactical HUD 1 Map Filters NONE Filters NONE Steam 1 RUN: bada01e2-b495-4f9a-9e01-69fa85065cae